bitfinex/quotes_BTCUSD_20250910
["timestamp","ask_amount","ask_price","bid_price","bid_amount"]
[1757528397883,1.2857056,113630.0,113620.0,0.00048264]
[1757528402256,1.29187926,113630.0,113620.0,0.00048264]
[1757528406294,1.14487926,113630.0,113620.0,0.00048264]
[1757528406518,1.29187926,113630.0,113620.0,0.00048264]
[1757528408468,1.18099666,113630.0,113620.0,0.00048264]
[1757528408938,0.92057678,113630.0,113620.0,0.00048264]
[1757528409159,1.18099666,113630.0,113620.0,0.00048264]
[1757528410259,1.03399666,113630.0,113620.0,0.00048264]
[1757528410473,1.16202468,113630.0,113620.0,0.00048264]
[1757528411501,1.01502468,113630.0,113620.0,0.00048264]
[1757528411742,1.16202468,113630.0,113620.0,0.00048264]
[1757528412417,1.18100585,113630.0,113620.0,0.00048264]
[1757528422426,1.18104318,113630.0,113620.0,0.00048264]
[1757528423139,1.03404318,113630.0,113620.0,0.00048264]
[1757528423344,1.18104318,113630.0,113620.0,0.00048264]
[1757528425614,1.18104432,113630.0,113620.0,0.00048264]
[1757528428029,1.03404432,113630.0,113620.0,0.00048264]
[1757528428248,1.00392321,113630.0,113620.0,0.00048264]
[1757528428643,1.00492321,113630.0,113620.0,0.00048264]
[1757528428851,1.00072321,113630.0,113620.0,0.00048264]
[1757528429058,0.50021303,113630.0,113620.0,0.00048264]
[1757528429260,0.63142297,113630.0,113620.0,0.00048264]
[1757528429466,0.61492561,113630.0,113620.0,0.00048264]
[1757528429677,0.61798561,113630.0,113620.0,0.00048264]
[1757528429892,0.61694561,113630.0,113620.0,0.00048264]
[1757528430313,0.61498561,113630.0,113620.0,0.00048264]
[1757528430766,0.61192561,113630.0,113620.0,0.00048264]
[1757528432025,0.48171567,113630.0,113620.0,0.00048264]
[1757528432244,0.61192561,113630.0,113620.0,0.00048264]
[1757528433112,0.48171567,113630.0,113620.0,0.00048264]
[1757528433493,0.33471567,113630.0,113620.0,0.00048264]
[1757528433729,0.61188561,113630.0,113620.0,0.00048264]
[1757528434383,0.24719215,113630.0,113620.0,0.00268295]
[1757528434570,0.52083979,113630.0,113620.0,0.00268295]
[1757528434941,0.39062985,113630.0,113620.0,0.00268295]
[1757528435144,0.52083979,113630.0,113620.0,0.00268295]
[1757528436748,0.24366985,113630.0,113620.0,0.00268295]
[1757528436976,0.39062985,113630.0,113620.0,0.00268295]
[1757528437318,0.39062985,113630.0,113620.0,0.17970829]
[1757528437532,0.39062985,113630.0,113620.0,0.04171786]
[1757528438180,0.39062985,113630.0,113620.0,0.04271786]
[1757528438430,0.39062985,113630.0,113620.0,0.04171786]
[1757528438639,0.39062985,113630.0,113620.0,0.04071786]
[1757528438868,0.39062985,113630.0,113620.0,0.00368295]
[1757528439538,0.39062985,113630.0,113620.0,0.00468295]
[1757528440164,0.33879492,113630.0,113620.0,0.00468295]
[1757528440803,0.47402486,113630.0,113620.0,0.00248264]
[1757528442859,0.56154838,113630.0,113620.0,0.00248264]
[1757528443043,0.69175832,113630.0,113620.0,0.00248264]
[1757528443270,0.7418749,113630.0,113620.0,0.00248264]
[1757528443501,0.74539728,113630.0,113620.0,0.00248264]
[1757528444584,0.74539728,113630.0,113620.0,0.00048264]
[1757528445232,0.61518734,113630.0,113620.0,0.00048264]
[1757528445663,0.4849774,113630.0,113620.0,0.00048264]
[1757528446095,0.61518734,113630.0,113620.0,0.00048264]
[1757528447642,0.46822734,113630.0,113620.0,0.00048264]
[1757528447901,0.74539728,113630.0,113620.0,0.00048264]
[1757528448133,0.9833538,113620.0,113610.0,0.0004]
[1757528448374,0.99981696,113620.0,113610.0,1e-08]
[1757528448600,0.20116742,113610.0,113600.0,1e-08]
[1757528448829,0.78017235,113610.0,113600.0,1e-08]
[1757528449050,0.75262059,113610.0,113600.0,1e-08]
[1757528449311,0.6991366,113610.0,113600.0,1e-08]
[1757528449532,0.75640172,113610.0,113600.0,1e-08]
[1757528449982,0.75650172,113610.0,113600.0,1e-08]
[1757528450200,0.75232752,113610.0,113600.0,1e-08]
[1757528450627,0.75849601,113610.0,113600.0,1e-08]
[1757528451045,0.75949601,113610.0,113600.0,1e-08]
[1757528451274,0.75332752,113610.0,113600.0,1e-08]
[1757528451485,0.82653207,113610.0,113600.0,1e-08]
[1757528451728,0.82665207,113610.0,113600.0,1e-08]
[1757528452350,0.82048586,113610.0,113600.0,1e-08]
[1757528452597,0.9506958,113610.0,113600.0,1e-08]
[1757528452812,0.7994558,113610.0,113600.0,1e-08]
[1757528453021,0.9506958,113610.0,113600.0,1e-08]
[1757528454096,0.95685789,113610.0,113600.0,1e-08]
[1757528456542,0.17605633,113600.0,113590.0,1e-08]
[1757528456756,0.63729065,113600.0,113590.0,1e-08]
[1757528456967,0.63513056,113600.0,113590.0,1e-08]
[1757528457178,0.66442056,113600.0,113590.0,1e-08]
[1757528457604,0.66794433,113600.0,113590.0,1e-08]
[1757528459972,0.51682433,113600.0,113590.0,1e-08]
[1757528460201,0.66810433,113600.0,113590.0,1e-08]
[1757528461104,0.92848421,113600.0,113590.0,1e-08]
[1757528461731,0.77724421,113600.0,113590.0,1e-08]
[1757528461928,0.92844421,113600.0,113590.0,1e-08]
[1757528462189,0.77724421,113600.0,113590.0,1e-08]
[1757528462404,0.92840421,113600.0,113590.0,1e-08]
[1757528464442,0.53769439,113600.0,113590.0,1e-08]
[1757528464649,0.9221666,113600.0,113590.0,1e-08]
[1757528465274,0.92209618,113600.0,113590.0,1e-08]
[1757528467530,0.53146636,113600.0,113590.0,1e-08]
[1757528467794,0.77101618,113600.0,113590.0,1e-08]
[1757528468005,1.13075282,113600.0,113590.0,0.00077001]
[1757528468204,1.13288282,113600.0,113590.0,1e-08]
[1757528468407,1.45859475,113600.0,113590.0,1e-08]
[1757528469143,1.45859475,113600.0,113590.0,0.00077001]
[1757528469144,0.35625636,113600.0,113590.0,0.00077001]
[1757528469345,0.35119636,113600.0,113590.0,0.00077001]
[1757528469756,0.8929909,113600.0,113590.0,0.00077001]
[1757528471435,0.8959209,113600.0,113590.0,0.00077001]
[1757528471645,0.8980509,113600.0,113590.0,1e-08]
[1757528472060,1.09342817,113600.0,113590.0,1e-08]
[1757528472268,1.19600207,113600.0,113590.0,1e-08]
[1757528472482,1.53600207,113600.0,113590.0,1e-08]
[1757528472669,1.54216161,113600.0,113590.0,1e-08]
[1757528473102,1.48884429,113600.0,113590.0,1e-08]
[1757528475088,1.31367429,113600.0,113590.0,1e-08]
[1757528475326,1.46467429,113600.0,113590.0,1e-08]
[1757528477395,1.48365405,113600.0,113590.0,1e-08]
[1757528477904,1.33265405,113600.0,113590.0,1e-08]
[1757528478107,1.48361405,113600.0,113590.0,1e-08]
[1757528480131,1.48357405,113600.0,113590.0,1e-08]
[1757528480369,0.35383213,113600.0,113590.0,0.00077001]
[1757528480534,0.89538667,113600.0,113590.0,0.00077001]
[1757528481096,0.89831667,113600.0,113590.0,0.00077001]
[1757528481522,0.90044667,113600.0,113590.0,1e-08]
[1757528481730,1.09582394,113600.0,113590.0,1e-08]
[1757528482528,0.90044667,113600.0,113590.0,1e-08]
[1757528483873,0.90054284,113600.0,113590.0,1e-08]
[1757528486615,1.09592011,113600.0,113590.0,1e-08]
[1757528486804,1.11967011,113600.0,113590.0,1e-08]
[1757528487011,1.1975072,113600.0,113590.0,1e-08]
[1757528487230,0.55866488,113600.0,113590.0,1e-08]
[1757528487368,1.14479669,113600.0,113590.0,1e-08]
[1757528488395,2.08990367,113600.0,113590.0,1e-08]
[1757528488613,1.50729542,113600.0,113590.0,1e-08]
[1757528489215,2.09342723,113600.0,113590.0,1e-08]
[1757528490541,2.14613774,113600.0,113590.0,1e-08]
[1757528490735,2.11713656,113600.0,113590.0,1e-08]
[1757528491158,2.11713803,113600.0,113590.0,1e-08]
[1757528491574,2.12013803,113600.0,113590.0,1e-08]
[1757528492810,1.96933803,113600.0,113590.0,1e-08]
[1757528493028,2.12033803,113600.0,113590.0,1e-08]
[1757528493408,1.96933803,113600.0,113590.0,1e-08]
[1757528493611,2.12029803,113600.0,113590.0,1e-08]
[1757528494288,2.0965887,113600.0,113590.0,1e-08]
[1757528496356,2.12029803,113600.0,113590.0,1e-08]
[1757528496577,2.12853273,113600.0,113590.0,1e-08]
[1757528496794,2.21287598,113600.0,113590.0,1e-08]
[1757528497422,2.18124324,113600.0,113590.0,1e-08]
[1757528503276,2.17300854,113600.0,113590.0,1e-08]
[1757528503481,2.14929921,113600.0,113590.0,1e-08]
[1757528505198,0.17607183,113590.0,113580.0,1e-08]
[1757528505422,0.17608733,113580.0,113570.0,1e-08]
[1757528505608,1.64060448,113580.0,113570.0,1e-08]
[1757528505912,1.71365667,113580.0,113570.0,1e-08]
[1757528506129,1.6613013,113580.0,113570.0,1e-08]
[1757528506340,1.65154737,113580.0,113570.0,1e-08]
[1757528506550,1.65154737,113580.0,113570.0,0.00046715]
[1757528507619,1.65254737,113580.0,113570.0,0.00046715]
[1757528508474,1.50246737,113580.0,113570.0,0.00046715]
[1757528508701,1.65354737,113580.0,113570.0,0.00046715]
[1757528509116,1.65466737,113580.0,113570.0,0.00046715]
[1757528509325,1.65465235,113580.0,113570.0,0.00046715]
[1757528509742,1.6484751,113580.0,113570.0,0.00046715]
[1757528509961,1.50243834,113580.0,113570.0,0.00046715]
[1757528510170,1.03859338,113580.0,113570.0,0.00046715]
[1757528510357,0.51944499,113580.0,113570.0,0.00046715]
[1757528510595,1.1055768,113580.0,113570.0,0.00046715]
[1757528511231,1.13070338,113580.0,113570.0,0.00046715]
[1757528512024,1.15445338,113580.0,113570.0,0.00046715]
[1757528512577,1.15092899,113580.0,113570.0,0.00046715]
[1757528513246,0.56479718,113580.0,113570.0,0.00046715]
[1757528513453,1.15092899,113580.0,113570.0,0.00046715]
[1757528514516,1.12713899,113580.0,113570.0,0.00046715]
[1757528514724,1.12500899,113580.0,113570.0,0.00123715]
[1757528514929,1.12701899,113580.0,113570.0,0.00123715]
[1757528515181,0.65252252,113580.0,113570.0,0.00123715]
[1757528515386,0.82506048,113580.0,113570.0,0.00171715]
[1757528515595,0.82506048,113580.0,113570.0,0.00123715]
[1757528515836,0.43430594,113580.0,113570.0,0.17781999]
[1757528516052,0.82506048,113580.0,113570.0,0.18002127]
[1757528516277,0.80762539,113580.0,113570.0,0.18002127]
[1757528516673,0.15322,113580.0,113570.0,0.24976605]
[1757528516917,0.34859727,113580.0,113570.0,0.24756477]
[1757528517131,0.34759727,113580.0,113570.0,0.24756477]
[1757528517341,0.54297454,113580.0,113570.0,0.20966685]
[1757528517560,0.54297454,113580.0,113570.0,0.21066685]
[1757528518197,0.54297454,113580.0,113570.0,0.21166685]
[1757528518460,0.15222,113580.0,113570.0,0.21166685]
[1757528518673,0.34751727,113580.0,113570.0,0.25044532]
[1757528519110,0.0001,113580.0,113570.0,0.53796884]
[1757528519528,0.0001,113580.0,113570.0,0.53896884]
[1757528520404,0.0001,113580.0,113570.0,0.87896884]
[1757528521480,0.0001,113580.0,113570.0,0.87596884]
[1757528521690,0.0011,113580.0,113570.0,0.87996884]
[1757528522108,0.0001,113580.0,113570.0,0.87596884]
[1757528522363,0.0001,113580.0,113570.0,0.87996884]
[1757528522580,0.0011,113580.0,113570.0,0.87996884]
[1757528522794,0.0011,113580.0,113570.0,1.27996884]
[1757528523916,0.0011,113580.0,113570.0,1.28196884]
[1757528524417,0.0011,113580.0,113570.0,1.27996884]
[1757528524663,0.19647727,113580.0,113570.0,1.27996884]
[1757528525106,0.0011,113580.0,113570.0,1.27996884]
[1757528525318,0.19647727,113580.0,113570.0,1.28196884]
[1757528525531,0.19647727,113580.0,113570.0,0.88196884]
[1757528527360,0.0011,113580.0,113570.0,0.88196884]
[1757528528028,0.0011,113580.0,113570.0,1.03372884]
[1757528528460,0.0011,113580.0,113570.0,1.03376884]
[1757528533364,0.0011,113580.0,113570.0,0.88196884]
[1757528533577,0.0011,113580.0,113570.0,1.03364884]
[1757528537628,0.0011,113580.0,113570.0,1.38364884]
[1757528538041,0.001,113580.0,113570.0,1.41006669]
[1757528538485,1e-08,113580.0,113570.0,1.48519327]
[1757528538712,1e-08,113580.0,113570.0,1.88519327]
[1757528539588,1e-08,113580.0,113570.0,1.88319327]
[1757528539782,1e-08,113580.0,113570.0,1.88819327]
[1757528540189,0.0001,113600.0,113590.0,0.57607183]
[1757528540392,0.0001,113600.0,113590.0,0.87276253]
[1757528540598,0.0001,113600.0,113590.0,0.89685253]
[1757528540820,0.0001,113600.0,113590.0,1.29685253]
[1757528541082,0.0001,113600.0,113590.0,1.32326799]
[1757528541290,0.0001,113600.0,113590.0,1.39086799]
[1757528541705,0.0001,113600.0,113590.0,1.39386799]
[1757528542061,0.0001,113600.0,113590.0,1.39586799]
[1757528542268,0.0001,113600.0,113590.0,1.39596799]
[1757528542685,1e-08,113600.0,113590.0,1.67109457]
[1757528542946,1e-08,113600.0,113590.0,2.01109457]
[1757528543185,1e-08,113600.0,113590.0,2.0779785]
[1757528543749,1e-08,113600.0,113590.0,1.65141192]
[1757528544122,1e-08,113600.0,113590.0,1.80285192]
[1757528544492,1e-08,113600.0,113590.0,1.45141192]
[1757528544701,1e-08,113600.0,113590.0,1.60281192]
[1757528544900,1e-08,113600.0,113590.0,1.65281192]
[1757528545871,1e-08,113600.0,113590.0,1.60281192]
[1757528546348,1e-08,113600.0,113590.0,1.45141192]
[1757528546804,1e-08,113600.0,113590.0,1.13568799]
[1757528547020,0.13021715,113600.0,113590.0,0.89688447]
[1757528547227,0.01643054,113600.0,113590.0,0.84820447]
[1757528547435,0.01643054,113600.0,113590.0,0.82178901]
[1757528553996,0.0001,113610.0,113600.0,0.17605633]
[1757528554229,0.0001,113610.0,113600.0,0.91773173]
[1757528554443,0.0001,113610.0,113600.0,0.91630103]
[1757528555020,0.0001,113610.0,113600.0,0.91830103]
[1757528555221,0.0001,113610.0,113600.0,1.31830103]
[1757528555638,0.0001,113610.0,113600.0,1.46934103]
[1757528556063,0.13021714,113630.0,113620.0,0.17602534]
[1757528556360,0.17600985,113630.0,113620.0,0.36296055]
[1757528556745,0.31501136,113640.0,113620.0,0.36296055]
[1757528556964,0.31511136,113640.0,113620.0,0.36296055]
[1757528557164,0.18494106,113640.0,113630.0,0.17600985]
[1757528557369,0.001,113630.0,113620.0,0.36267055]
[1757528557572,0.3151582,113640.0,113620.0,0.38738055]
[1757528558100,0.3161582,113640.0,113620.0,0.38738055]
[1757528558628,0.18594106,113640.0,113630.0,0.17600985]
[1757528558837,0.30735834,113640.0,113630.0,0.23311889]
[1757528559040,0.30635834,113640.0,113630.0,0.23359889]
[1757528559503,0.30635834,113640.0,113630.0,0.23311889]
[1757528559871,0.30835834,113640.0,113630.0,0.23311889]
[1757528560243,0.30935834,113640.0,113630.0,0.24233506]
[1757528560653,0.30635834,113640.0,113630.0,0.24233506]
[1757528561070,0.30635834,113640.0,113630.0,0.23511889]
[1757528563072,0.1761412,113640.0,113630.0,0.23511889]
[1757528563288,0.30635834,113640.0,113630.0,0.23511889]
[1757528564276,0.30635834,113640.0,113630.0,0.05910904]
[1757528564476,0.30635834,113640.0,113630.0,0.00277]
[1757528564675,0.30945834,113640.0,113630.0,0.17877985]
[1757528565313,0.30635834,113640.0,113630.0,0.17877985]
[1757528565544,0.30635834,113640.0,113630.0,0.18097997]
[1757528565998,0.30635834,113640.0,113630.0,0.17877985]
[1757528566212,0.30635834,113640.0,113630.0,0.23620535]
[1757528567274,0.1761412,113640.0,113630.0,0.23620535]
[1757528567442,0.30635834,113640.0,113630.0,0.23620535]
[1757528569568,0.1761412,113640.0,113630.0,0.23620535]
[1757528569855,0.30635834,113640.0,113630.0,0.23620535]
[1757528571067,0.30635834,113640.0,113630.0,0.0601955]
[1757528571236,0.1792412,113640.0,113630.0,0.0601955]
[1757528571440,0.31161843,113640.0,113630.0,0.0601955]
[1757528571671,0.30945834,113640.0,113630.0,0.0601955]
[1757528571876,0.30945834,113640.0,113630.0,0.23620535]
[1757528572477,0.30635834,113640.0,113630.0,0.23620535]
[1757528572651,0.1761412,113640.0,113630.0,0.23620535]
[1757528572857,0.00014684,113640.0,113630.0,0.26062535]
[1757528573518,0.00014684,113640.0,113630.0,0.41082535]
[1757528575124,0.00014684,113640.0,113630.0,0.26062535]
[1757528575322,0.00014684,113640.0,113630.0,0.41082535]
[1757528576348,0.00014684,113640.0,113630.0,0.41074535]
[1757528576514,0.00014684,113640.0,113630.0,0.38628535]
[1757528577865,0.00014684,113640.0,113630.0,0.41151535]
[1757528586273,0.1761412,113640.0,113630.0,0.26095535]
[1757528586474,0.00014684,113640.0,113630.0,0.26095535]
[1757528586677,0.00014684,113640.0,113630.0,0.41067535]
[1757528588346,0.00014684,113640.0,113630.0,0.41115535]
[1757528590329,0.00014684,113640.0,113630.0,0.41107535]
[1757528596201,0.00014684,113640.0,113630.0,0.26143535]
[1757528596398,0.00014684,113640.0,113630.0,0.41095535]
[1757528604446,0.1761412,113640.0,113630.0,0.41095535]
[1757528604652,0.57354501,113640.0,113630.0,0.002]
[1757528604867,0.72054492,113640.0,113630.0,0.002]
[1757528606607,0.83259844,113640.0,113630.0,0.002]
[1757528606800,1.05285688,113640.0,113630.0,0.002]
[1757528607499,1.06188652,113640.0,113630.0,0.002]
[1757528608136,1.12944652,113640.0,113630.0,0.002]
[1757528608351,1.46944652,113640.0,113630.0,0.002]
[1757528608758,1.32028652,113640.0,113630.0,0.002]
[1757528608965,1.46948652,113640.0,113630.0,0.002]
[1757528609785,1.46948652,113640.0,113630.0,0.001]
[1757528609995,1.46948652,113640.0,113600.0,0.07061254]
[1757528609996,0.17604084,113610.0,113600.0,0.07061254]
[1757528610204,0.52249279,113610.0,113600.0,0.07061254]
[1757528610411,0.5223727,113610.0,113600.0,0.07061254]
[1757528610617,0.5253127,113610.0,113600.0,0.0001]
[1757528611003,0.5254127,113610.0,113600.0,0.0001]
[1757528611246,0.3762527,113610.0,113600.0,0.0001]
[1757528611456,0.5254527,113610.0,113600.0,0.0001]
[1757528611661,0.3762527,113610.0,113600.0,0.0011]
[1757528611865,0.5254127,113610.0,113600.0,0.0011]
[1757528612074,0.5253727,113610.0,113600.0,0.0011]
[1757528612896,0.5253727,113610.0,113600.0,0.0021]
[1757528613258,0.3762527,113610.0,113600.0,0.0021]
[1757528613465,0.5253727,113610.0,113600.0,0.0021]
[1757528614325,0.3762527,113610.0,113600.0,0.0021]
[1757528614474,0.5253727,113610.0,113600.0,0.0021]
[1757528617264,0.33024084,113610.0,113600.0,0.0021]
[1757528617472,0.5253727,113610.0,113600.0,0.0021]
[1757528617668,0.80802808,113610.0,113600.0,0.0021]
[1757528617823,0.83255808,113610.0,113600.0,0.0021]
[1757528619574,0.63742622,113610.0,113600.0,0.0021]
[1757528620670,0.48830622,113610.0,113600.0,0.0021]
[1757528621068,0.63722622,113610.0,113600.0,0.0021]
[1757528621305,0.44213436,113610.0,113600.0,0.0021]
[1757528621640,0.61273622,113610.0,113600.0,0.0021]
[1757528622688,0.61269622,113610.0,113600.0,0.0021]
[1757528625887,0.41756436,113610.0,113600.0,0.0021]
[1757528626131,0.61269622,113610.0,113600.0,0.0021]
[1757528626605,0.41756436,113610.0,113600.0,0.0021]
[1757528627048,0.41768436,113610.0,113600.0,0.0021]
[1757528627265,0.61281622,113610.0,113600.0,0.0021]
[1757528639474,0.41768436,113610.0,113600.0,0.0021]
[1757528639691,0.61281622,113610.0,113600.0,0.00287]
[1757528639910,0.46377622,113610.0,113600.0,0.0021]
[1757528640156,0.61253622,113610.0,113600.0,0.0021]
[1757528640584,0.61249622,113610.0,113600.0,0.0021]
[1757528641643,0.61868203,113610.0,113600.0,0.0021]
[1757528641854,0.61249622,113610.0,113600.0,0.0021]
[1757528643155,0.41736436,113610.0,113600.0,0.0021]
[1757528643512,0.61249622,113610.0,113600.0,0.0021]
[1757528643984,0.930701,113610.0,113600.0,0.0021]
[1757528644216,0.94719802,113610.0,113600.0,0.0021]
[1757528645386,0.94719802,113610.0,113600.0,0.0011]
[1757528645646,0.94719802,113610.0,113600.0,0.0001]
[1757528646108,0.94819802,113610.0,113600.0,0.0001]
[1757528646342,0.95019802,113610.0,113600.0,0.0001]
[1757528647312,1.50432915,113610.0,113600.0,0.0001]
[1757528647551,1.53900313,113610.0,113600.0,0.0001]
[1757528647783,1.58900313,113610.0,113600.0,0.0001]
[1757528648412,1.58899942,113610.0,113600.0,0.0001]
[1757528648902,1.58887942,113610.0,113600.0,0.0001]
[1757528649398,0.59147763,113580.0,113570.0,1e-08]
[1757528649610,0.82788115,113580.0,113570.0,1e-08]
[1757528649831,0.83001115,113580.0,113570.0,1e-08]
[1757528650065,0.83307115,113580.0,113570.0,1e-08]
[1757528650278,0.68419115,113580.0,113570.0,1e-08]
[1757528650493,0.68419115,113580.0,113570.0,0.00077001]
[1757528650494,0.83313115,113580.0,113570.0,0.00077001]
[1757528650713,0.80587457,113580.0,113570.0,0.00123715]
[1757528650930,0.80800457,113580.0,113570.0,0.00323715]
[1757528651810,0.65916457,113580.0,113570.0,0.00323715]
[1757528652032,0.80800457,113580.0,113570.0,0.00523715]
[1757528652225,0.80800457,113580.0,113570.0,0.00446715]
[1757528652447,0.67827617,113580.0,113570.0,0.00446715]
[1757528652670,0.67827617,113580.0,113570.0,0.00046715]
[1757528652908,0.67827617,113580.0,113570.0,0.00146715]
[1757528653115,0.67827617,113580.0,113570.0,0.00246715]
[1757528653945,0.67819617,113580.0,113570.0,0.00246715]
[1757528654358,0.67815617,113580.0,113570.0,0.00246715]
[1757528656809,0.72744275,113580.0,113570.0,0.00146715]
[1757528657022,0.79504275,113580.0,113570.0,0.00146715]
[1757528657862,0.79504275,113580.0,113570.0,0.00046715]
[1757528658440,0.82147446,113580.0,113570.0,0.00046715]
[1757528658880,0.82247446,113580.0,113570.0,0.00046715]
[1757528659887,0.82447446,113580.0,113570.0,0.00046715]
[1757528660879,0.67575446,113580.0,113570.0,0.00046715]
[1757528661107,0.82447446,113580.0,113570.0,0.00046715]
[1757528662245,1.29474212,113580.0,113570.0,0.00046715]
[1757528662439,1.16447446,113580.0,113570.0,0.00046715]
[1757528663328,0.90385914,113580.0,113570.0,0.00046715]
[1757528663536,1.16439446,113580.0,113570.0,0.00046715]
[1757528664128,1.0341268,113580.0,113570.0,0.00046715]
[1757528664371,1.16439446,113580.0,113570.0,0.00046715]
[1757528665387,1.01575446,113580.0,113570.0,0.00046715]
[1757528665607,1.16443446,113580.0,113570.0,0.00046715]
[1757528671307,1.17060029,113580.0,113570.0,0.00046715]
[1757528674086,1.30086795,113580.0,113570.0,0.00046715]
[1757528674321,1.31732424,113580.0,113570.0,0.00046715]
[1757528677376,1.33630306,113580.0,113570.0,0.00046715]
[1757528677867,1.18762306,113580.0,113570.0,0.00046715]
[1757528678200,1.33626306,113580.0,113570.0,0.00046715]
[1757528679037,1.18762306,113580.0,113570.0,0.00046715]
[1757528679278,1.33626306,113580.0,113570.0,0.00046715]
[1757528679901,1.18762306,113580.0,113570.0,0.00046715]
[1757528680087,1.2059954,113580.0,113570.0,0.00046715]
[1757528680647,1.0573554,113580.0,113570.0,0.00046715]
[1757528680841,1.1818354,113580.0,113570.0,0.00046715]
[1757528681038,1.2045154,113580.0,113570.0,0.00046715]
[1757528682620,1.0558754,113580.0,113570.0,0.00046715]
[1757528682820,1.2045154,113580.0,113570.0,0.00046715]
[1757528684337,1.0558754,113580.0,113570.0,0.00046715]
[1757528684518,1.2045154,113580.0,113570.0,0.00046715]
[1757528686539,0.74622837,113580.0,113570.0,0.00046715]
[1757528686763,1.13642487,113580.0,113570.0,0.00046715]
[1757528687652,1.15910487,113580.0,113570.0,0.00046715]
[1757528688276,0.89856955,113580.0,113570.0,0.00046715]
[1757528688473,1.15910487,113580.0,113570.0,0.00046715]
[1757528689743,0.89856955,113580.0,113570.0,0.00046715]
[1757528689966,1.15910487,113580.0,113570.0,0.00046715]
[1757528690953,0.87588955,113580.0,113570.0,0.00046715]
[1757528691298,1.13642487,113580.0,113570.0,0.00046715]
[1757528692089,0.98778487,113580.0,113570.0,0.00046715]
[1757528692298,1.13642487,113580.0,113570.0,0.00046715]
[1757528693422,1.11996858,113580.0,113570.0,0.00046715]
[1757528693635,1.11998953,113580.0,113570.0,0.00046715]
[1757528694035,0.97134953,113580.0,113570.0,0.00046715]
[1757528694242,1.11998953,113580.0,113570.0,0.00046715]
[1757528694680,1.11479953,113580.0,113570.0,0.00123715]
[1757528695194,1.12006953,113580.0,113570.0,0.00046715]
[1757528695976,1.14452953,113580.0,113570.0,0.00046715]
[1757528698241,1.13834275,113580.0,113570.0,0.00046715]
[1757528698674,1.14452885,113580.0,113570.0,0.00046715]
[1757528698883,1.17095995,113580.0,113570.0,0.00046715]
[1757528700748,1.16477385,113580.0,113570.0,0.00046715]
[1757528700955,1.17096018,113580.0,113570.0,0.00046715]
[1757528701456,1.19602214,113580.0,113570.0,0.00046715]
[1757528701665,1.16477385,113580.0,113570.0,0.00046715]
[1757528703165,0.90423853,113580.0,113570.0,0.00046715]
[1757528703277,1.16477385,113580.0,113570.0,0.00046715]
[1757528705079,0.90423853,113580.0,113570.0,0.00046715]
[1757528705413,1.16477385,113580.0,113570.0,0.00046715]
[1757528706332,1.16473385,113580.0,113570.0,0.00046715]
[1757528706533,1.01613385,113580.0,113570.0,0.00046715]
[1757528706737,1.16473385,113580.0,113570.0,0.00046715]
[1757528707355,1.29500151,113580.0,113570.0,0.00046715]
[1757528707574,1.32019694,113580.0,113570.0,0.00046715]
[1757528708181,1.32019721,113580.0,113570.0,0.00046715]
[1757528708383,1.33669712,113580.0,113570.0,0.00046715]
[1757528709404,1.37732894,113580.0,113570.0,1e-08]
[1757528709580,1.42732894,113580.0,113570.0,1e-08]
[1757528710043,1.45094803,113580.0,113570.0,1e-08]
[1757528711230,1.42732894,113580.0,113570.0,1e-08]
[1757528711709,1.47732894,113580.0,113570.0,1e-08]
[1757528712565,2.06395497,113580.0,113570.0,1e-08]
[1757528712773,2.25977802,113580.0,113570.0,1e-08]
[1757528712978,2.22739496,113580.0,113570.0,1e-08]
[1757528713823,1.51578802,113580.0,113570.0,1e-08]
[1757528714026,1.66438802,113580.0,113570.0,1e-08]
[1757528714460,2.25101405,113580.0,113570.0,1e-08]
[1757528714693,1.66438802,113580.0,113570.0,1e-08]
[1757528715323,1.64076893,113580.0,113570.0,1e-08]
[1757528717035,1.49216893,113580.0,113570.0,1e-08]
[1757528717284,1.64168893,113580.0,113570.0,1e-08]
[1757528717520,1.49216893,113580.0,113570.0,1e-08]
[1757528717740,1.64168893,113580.0,113570.0,1e-08]
[1757528719313,1.633395,113580.0,113570.0,1e-08]
[1757528719495,1.04672897,113580.0,113570.0,1e-08]
[1757528719647,1.583355,113580.0,113570.0,1e-08]
[1757528720060,1.633355,113580.0,113570.0,1e-08]
[1757528720273,1.433875,113580.0,113570.0,1e-08]
[1757528720451,1.633595,113580.0,113570.0,1e-08]
[1757528720691,2.25260409,113580.0,113570.0,1e-08]
[1757528720918,2.28445624,113580.0,113570.0,1e-08]
[1757528721612,2.28345624,113580.0,113570.0,1e-08]
[1757528721827,2.28645624,113580.0,113570.0,1e-08]
[1757528722272,2.28445624,113580.0,113570.0,1e-08]
[1757528722596,2.28745624,113580.0,113570.0,1e-08]
[1757528724034,2.28749624,113580.0,113570.0,1e-08]
[1757528725364,0.54135356,113490.0,113480.0,0.0004]
[1757528725582,0.80453557,113490.0,113480.0,0.0004]
[1757528725787,0.84088386,113490.0,113480.0,0.0004]
[1757528726004,0.95953557,113490.0,113480.0,0.0004]
[1757528726217,0.83314332,113490.0,113480.0,0.0004]
[1757528726428,1.11620885,113490.0,113480.0,0.0004]
[1757528726630,1.05106624,113490.0,113480.0,0.0004]
[1757528726841,1.05106624,113490.0,113480.0,0.00044686]
[1757528727260,1.05106624,113490.0,113480.0,0.00244686]
[1757528727261,0.85552423,113490.0,113480.0,0.00244686]
[1757528727503,1.06752167,113490.0,113480.0,0.00244686]
[1757528727906,1.06752167,113490.0,113480.0,0.00544686]
[1757528728676,0.87197966,113490.0,113480.0,0.00544686]
[1757528728880,1.26306368,113490.0,113480.0,0.00544686]
[1757528729302,0.87197966,113490.0,113480.0,0.00544686]
[1757528729611,1.26306368,113490.0,113480.0,0.00544686]
[1757528730404,1.26303349,113490.0,113480.0,0.00544686]
[1757528730840,1.32754609,113490.0,113480.0,0.00544686]
[1757528731057,1.17722609,113490.0,113480.0,0.00544686]
[1757528731309,1.32750609,113490.0,113480.0,0.00544686]
[1757528732398,1.17722609,113490.0,113480.0,0.00544686]
[1757528732658,0.91207148,113490.0,113480.0,0.00621686]
[1757528732898,0.57207148,113490.0,113480.0,0.00669686]
[1757528733097,0.72227148,113490.0,113480.0,0.00621686]
[1757528733307,0.52672947,113490.0,113480.0,0.00621686]
[1757528733545,0.72227148,113490.0,113480.0,0.00621686]
[1757528733766,0.72532148,113490.0,113480.0,0.00621686]
[1757528733984,0.72737148,113490.0,113480.0,0.00544686]
[1757528734169,0.72737148,113490.0,113480.0,0.00621686]
[1757528735156,0.72532148,113490.0,113480.0,0.00621686]
[1757528735367,0.52977947,113490.0,113480.0,0.00621686]
[1757528735576,0.72737148,113490.0,113480.0,0.00621686]
[1757528736573,0.70893624,113490.0,113480.0,0.00621686]
[1757528736822,0.70588624,113490.0,113480.0,0.00621686]